Cogmind - Beta 13 @@@ ROGUE MODE // 2024.03.31 @ 18:02:42 Player: SLUGGY Result: Destroyed by G-47 Trooper with Particle Gun Performance ------------- Evolutions (1) 500 Regions Visited (3) 600 Robots Destroyed (74) 370 Value Destroyed (1900) 1900 Prototype IDs (0) 0 Alien Tech Used (0) 0 Bonus (-129) -129 TOTAL SCORE: 3241 Bonus ------- High Alert Combat Kills 100 Friendly Fire -229 Cogmind --------- Core Integrity 0/400 Matter 212/300 Energy 265/265 System Corruption 6% Temperature Hot (268) Movement Walking (120) Location -9/Storage Parts ------- > --- POWER (1) -------- Improved Ion Engine > --- PROPULSION (3) --- Aluminum Leg Aluminum Leg (fused) Aluminum Leg > --- UTILITY (3) ------ Large Storage Unit Weight Redist. System Signal Interpreter > --- WEAPON (2) ------- EM Shotgun Missile Launcher > --- INVENTORY (15) --- Power Amplifier Compact Battery (200) Particle Charger Core Shielding Light Armor Plating EM Shotgun Particle Cannon Particle Cannon Heavy Assault Rifle Heavy Assault Rifle Heavy Assault Rifle Datajack Peak State ------------ > --- POWER ------------ Improved Ion Engine > --- PROPULSION ------- Aluminum Leg Aluminum Leg Aluminum Leg > --- UTILITY ---------- Power Amplifier Large Storage Unit Core Shielding > --- WEAPON ----------- Particle Cannon Heavy Assault Rifle > --- INVENTORY -------- Compact Battery Signal Interpreter Particle Charger Particle Charger EM Shotgun EM Shotgun Particle Cannon Heavy Assault Rifle Heavy Assault Rifle Datajack [Rating: 18] Favorites ----------- Power Improved Ion Engine Engine Improved Ion Engine Propulsion Aluminum Leg Treads Improved Treads Leg Aluminum Leg Wheel Compact Wheel Utility Large Storage Unit Device Weight Redist. System Storage Large Storage Unit Processor Targeting Computer Protection Light Armor Plating Weapon Heavy Assault Rifle Energy Gun Heavy EM Pulse Gun Energy Cannon Particle Cannon Ballistic Gun Heavy Assault Rifle Launcher Missile Launcher Special Weapon Mining Laser Special Melee Weapon Datajack Build | -11 -10 -9 -9 ------- Run | Yrd Mat Mat Sto Slots Evolved 2 | . . 2 . Power . | . . . . Propulsion 1 | . . 1 . Utility 1 | . . 1 . Weapon . | . . . . Parts Attached 81 | 9 18 50 4 Power 7 | 2 2 3 . Engine 7 | 2 2 3 . Core . | . . . . Reactor . | . . . . Propulsion 22 | 2 5 14 1 Treads 7 | . 5 2 . Leg 13 | 2 . 10 1 Wheel 2 | . . 2 . Hover . | . . . . Flight . | . . . . Utility 14 | 2 4 7 1 Device 3 | 1 . 1 1 Storage 3 | 1 2 . . Processor 3 | . 2 1 . Hackware . | . . . . Protection 5 | . . 5 . Artifact . | . . . . Weapon 38 | 3 7 26 2 Energy Gun 9 | . 4 4 1 Energy Cannon 4 | . . 4 . Ballistic Gun 18 | 2 3 13 . Ballistic Cannon . | . . . . Launcher 5 | . . 4 1 Special Weapon 1 | 1 . . . Impact Weapon . | . . . . Slashing Weapon . | . . . . Piercing Weapon . | . . . . Special Melee Weapon 1 | . . 1 . Unidentified Prototypes . | . . . . Corrupted Parts 1 | . . 1 . System Corruption 3 | . . 3 . Parts Lost 13 | . 1 12 . Power 1 | . . 1 . Propulsion 4 | . . 4 . Utility 1 | . . 1 . Weapon 7 | . 1 6 . Highest Loss Streak 4 | . 1 4 . To Critical Strikes . | . . . . Average Slot Usage (%) 95 | . 98 92 100 Engine 11 | . 13 10 11 Treads 10 | . 21 6 . Leg 18 | . 5 22 33 Device 1 | . . 1 6 Storage 11 | . 14 11 11 Processor 11 | . 13 9 11 Protection 5 | . . 9 4 Energy Gun 6 | . 12 2 8 Energy Cannon 3 | . . 2 10 Ballistic Gun 11 | . 12 14 2 Special Weapon 1 | . 3 . . Naked Turns . | . . . . Heaviest Build 40 | 14 31 40 35 Greatest Support 69 | 20 46 69 36 Greatest Overweight (x) 10 | 1 2 10 1 Average Overweight (x) . | . . . . Largest Inventory Capacity 15 | 8 15 15 15 Average Capacity 12 | 7 8 15 15 Most Carried 15 | 8 9 15 12 Average Carried 8 | 4 5 9 10 Final Capacity 15 | 8 15 15 15 Final Carried 12 | 3 6 11 12 Class Distribution -------------------- 51% | Scavenger-Mutant 48% | Mutant Dominant Class ---------------- Mutant | -10/Materials Scavenger-Mutant | -9/Materials Scavenger-Mutant | -9/Storage Resources | -11 -10 -9 -9 ----------- Run | Yrd Mat Mat Sto Matter Collected 1759 | 217 309 1146 87 Remotely . | . . . . Salvage Created 2250 | 32 465 1299 454 Parts 179 | 8 44 97 30 Haulers Intercepted 2 | . 1 . 1 Recyclers Shooed 2 | . . 1 1 Parts Field Recycled . | . . . . Retrieved Matter . | . . . . Parts Self-Destructed . | . . . . Prevented . | . . . . Kills | -11 -10 -9 -9 ------- Run | Yrd Mat Mat Sto Combat Hostiles Destroyed 51 | . 12 30 9 Guns 26 | . 10 16 . Cannons 10 | . . 5 5 AOE 14 | . 2 8 4 Classes Destroyed 12 | 1 5 5 1 Worker 5 | . 1 3 1 Builder 3 | . . 3 . Tunneler 4 | 2 1 1 . Hauler 2 | . 1 . 1 Recycler 1 | . . 1 . Watcher 7 | . 3 3 1 Swarmer 8 | . 8 . . Grunt 29 | . 4 22 3 Brawler 1 | . . . 1 Duelist 2 | . . 1 1 Protector 2 | . . 1 1 Sentry 9 | . . 6 3 Thug 1 | . . . 1 Best Kill Streak 11 | 2 4 11 5 Combat Bots Only 5 | . 3 5 4 Max Kills in Single Turn 3 | 1 3 2 2 Gunslinging 1 | . 1 . . Exploded 2 | . 2 2 1 Melee . | . . . . Uniques/NPCs Destroyed . | . . . . Combat | -11 -10 -9 -9 -------- Run | Yrd Mat Mat Sto Hostile Shots Fired 282 | . 47 215 20 Missed 72 | . 14 54 4 Damage Taken 2634 | . 280 2078 276 Core 441 | . 37 355 49 Absorbed by Shields . | . . . . Redirected to Shielding 22 | . . 22 . Core Remaining (%) 92 | 100 85 . . Volleys Fired 169 | 4 38 105 22 Largest 2 | 2 2 2 2 Hottest 113 | 40 68 104 113 Shots Fired 295 | 7 67 183 38 Gun 231 | 7 67 142 15 Cannon 44 | . . 27 17 Launcher 20 | . . 14 6 Special . | . . . . Kinetic 170 | 7 35 120 8 Thermal 46 | . 2 27 17 Explosive 20 | . . 14 6 Electromagnetic 59 | . 30 22 7 Robot Hit Streak 13 | 6 5 7 13 Robot Miss Streak 9 | 1 4 9 3 Penetration Max . | . . . . Secondary Targets 6 | . 2 4 . Max Gunslinging Chain 1 | . 1 1 . Shots Hit Robots 169 | 6 37 103 23 Core Hits 111 | 3 19 66 23 Critical Kills . | . . . . Critical Parts Destroyed . | . . . . Critical Strikes 2 | . . 2 . Corrupt 2 | . . 2 . Melee Attacks 1 | . . 1 . Impact . | . . . . Slashing . | . . . . Piercing . | . . . . Sneak Attacks 1 | . . 1 . Combat Hostiles . | . . . . Follow-up Attacks . | . . . . Damage Inflicted 4689 | 62 738 2647 1242 Guns 2190 | 62 602 1398 128 Cannons 532 | . . 285 247 Explosions 1925 | . 132 947 846 Melee . | . . . . Ramming 42 | . 4 17 21 Kinetic 1525 | 62 310 1110 43 Thermal 816 | . 144 425 247 Explosive 1653 | . . 807 846 Electromagnetic 653 | . 280 288 85 Impact . | . . . . Slashing . | . . . . Piercing . | . . . . Highest Corruption 6 | . 1 5 6 Average Corruption 3 | . 1 4 5 Corruption Purged . | . . . . Corruption Blocked . | . . . . Effects 56 | . 9 32 15 Message Errors 10 | . . 8 2 Matter Fused 13 | . 2 9 2 Heat Flow Errors 10 | . 2 5 3 Energy Discharges 6 | . . 5 1 Parts Fused 2 | . . 2 . Data Loss (minor) 4 | . . 1 3 Data Loss (major) 2 | . 1 . 1 Misfires 4 | . 2 1 1 Alerts 1 | . . . 1 Weapon Failures 4 | . 2 1 1 Overload Shots . | . . . . Overflow Damage 6 | . . 1 5 Projectiles 6 | . . 1 5 Explosions . | . . . . Melee . | . . . . Knockbacks 1 | . . 1 . Impact 1 | . . 1 . Kinetic . | . . . . Secondary . | . . . . Self-Inflicted Damage 176 | . . 121 55 Shots 5 | . . 3 2 Rammed 2 | . 2 . . Targets Rammed 12 | . 2 5 5 Kicked 10 | . . 5 5 Crushed . | . . . . Highest Temperature 540 | . 198 540 252 Average Temperature 128 | . 46 176 73 Received Heat Transfer 1137 | . 36 975 126 Effects 11 | . . 11 . Shutdowns 3 | . . 3 . Energy Bleed 2 | . . 2 . Interference 2 | . . 2 . Matter Decay 1 | . . 1 . Short Circuit 3 | . . 3 . Siege Activations . | . . . . Robots Corrupted . | . . . . Combat Hostiles . | . . . . Parts Fried 3 | . 1 2 . Impact Corruptions . | . . . . Robots Melted 1 | . . 1 . Combat Hostiles 1 | . . 1 . Parts Melted . | . . . . Heat Transferred 1327 | . 187 696 444 Parts Sabotaged . | . . . . Parts Stolen . | . . . . Parts Stripped . | . . . . Power Chain Reactions 2 | . 1 1 . Alert | -11 -10 -9 -9 ------- Run | Yrd Mat Mat Sto Peak Influence 545 | 10 174 545 362 Initial 194 | . 6 73 194 Average 212 | 2 54 302 276 Maximum Alert Level 2 | . . 2 1 Low Security (%) 56 | 100 100 41 10 Level 1 24 | . . 19 89 Level 2 18 | . . 38 . Level 3 . | . . . . Level 4 . | . . . . Level 5 . | . . . . High Security . | . . . . Max Security . | . . . . Squads Dispatched 13 | . 2 7 4 Investigation 5 | . 2 1 2 Extermination . | . . . . Reinforcement 5 | . . 5 . Assault 3 | . . 1 2 Garrison . | . . . . Intercept . | . . . . Searches Triggered . | . . . . Construction Impeded 1 | . . 1 . Haulers Reinforced . | . . . . Active Scanning Responses . | . . . . Cargo Convoy Interrupts . | . . . . Stealth | -11 -10 -9 -9 --------- Run | Yrd Mat Mat Sto Distress Signals 5 | . 1 4 . Communications Jammed . | . . . . Distress Signals . | . . . . Times Spotted 66 | . 19 36 11 Peak Tracking Total 7 | . 4 7 5 Tactical Retreats . | . . . . Traps | -11 -10 -9 -9 ------- Run | Yrd Mat Mat Sto Traps Triggered 7 | . 6 1 . Indirectly . | . . . . Trap Hack Attempts . | . . . . Triggered . | . . . . Disarmed . | . . . . Reprogrammed . | . . . . Reused . | . . . . Traps Extracted . | . . . . Installed . | . . . . Triggered . | . . . . Machines | -11 -10 -9 -9 ---------- Run | Yrd Mat Mat Sto Machines Disabled 5 | . 1 2 2 Max in Single Turn 1 | . 1 1 1 Machines Repaired . | . . . . Machines Dismantled . | . . . . Machines Sabotaged . | . . . . Overloaded Fab Kills . | . . . . Hacking | -11 -10 -9 -9 --------- Run | Yrd Mat Mat Sto Machines Accessed 7 | . 4 1 2 Terminals 6 | . 4 . 2 Fabricators . | . . . . Repair Stations . | . . . . Recycling Units . | . . . . Scanalyzers 1 | . . 1 . Garrison Access . | . . . . Total Hacks 26 | . 17 3 6 Successful 12 | . 9 1 2 Failed 14 | . 8 2 4 Catastrophic 2 | . 1 . 1 Database Lockouts . | . . . . Manual 7 | . 2 . 5 Terminals 23 | . 17 . 6 Fabricators . | . . . . Repair Stations . | . . . . Recycling Units . | . . . . Scanalyzers 3 | . . 3 . Garrison Access . | . . . . Terminal Hacks 11 | . 9 . 2 Record 2 | . 2 . . Dispatch Records 1 | . . . 1 Maintenance Status 1 | . 1 . . Security Status 1 | . 1 . . Patrol Status 2 | . 1 . 1 Transport Status 1 | . 1 . . Hauler Manifests 1 | . 1 . . Zone Layout 2 | . 2 . . Fabricator Hacks . | . . . . Repair Station Hacks . | . . . . Recycling Unit Hacks . | . . . . Scanalyzer 1 | . . 1 . Insert Component 1 | . . 1 . Garrison Access Hacks . | . . . . Unauthorized Hacks . | . . . . Terminals . | . . . . Fabricators . | . . . . Repair Stations . | . . . . Recycling Units . | . . . . Scanalyzers . | . . . . Garrison Access . | . . . . Data Cores Recovered . | . . . . Used . | . . . . Hacking Detections 7 | . 4 1 2 Full Trace Events 6 | . 3 1 2 Feedback Events 2 | . . 1 1 Corruption 2 | . . 1 1 Feedback Blocked . | . . . . Robot Schematics Acquired . | . . . . Robots Built . | . . . . Authchips . | . . . . Time . | . . . . Total Robot Build Rating . | . . . . Part Schematics Acquired . | . . . . Parts Built . | . . . . Authchips . | . . . . Time . | . . . . Total Part Build Rating . | . . . . Parts Repaired . | . . . . Time . | . . . . Parts Recycled . | . . . . Recycled Matter . | . . . . Retrieved Matter . | . . . . Retrieved Components . | . . . . Parts Scanalyzed 1 | . . 1 . Part Schematics Acquired . | . . . . Parts Damaged . | . . . . Bothacking | -11 -10 -9 -9 ------------ Run | Yrd Mat Mat Sto Used RIF Installer . | . . . . Robots Hacked . | . . . . Non-combat . | . . . . Combat . | . . . . Robot Hacks Applied . | . . . . Relay Couplers Released . | . . . . Fabnet Peak Effective % . | . . . . Robots Rewired . | . . . . Allies Hacked . | . . . . Hacks Repelled . | . . . . Allies | -11 -10 -9 -9 -------- Run | Yrd Mat Mat Sto Total Allies 2 | . . . 2 Largest Group 2 | . . . 2 Highest-Rated Group 62 | . . . 62 Highest-Rated Ally 31 | . . . 31 Total Orders . | . . . . Ally Attacks 5 | . . . 5 Total Damage 83 | . . . 83 Kills . | . . . . Allies Corrupted . | . . . . Allies Melted . | . . . . Intel | -11 -10 -9 -9 ------- Run | Yrd Mat Mat Sto Robot Analysis Total . | . . . . Derelict Logs Recovered . | . . . . Drone Launches . | . . . . Drone Recoveries . | . . . . Exploration | -11 -10 -9 -9 ------------- Run | Yrd Mat Mat Sto Turns Passed 3255 | 83 1025 1617 530 Spaces Moved 1706 | 53 581 801 271 Core 51 | 27 3 21 . Treads 577 | . 431 146 . Legs 1042 | 26 147 598 271 Wheels 36 | . . 36 . Hover . | . . . . Flight . | . . . . Fastest Speed 50 | 50 100 115 120 Average Speed 147 | 94 149 152 141 Slowest Speed 550 | 120 160 550 190 Overloaded Moves . | . . . . Propulsion Burnouts . | . . . . Robots Hopped . | . . . . Cave-ins Triggered . | . . . . Exploration Rate (%) 41 | 5 85 41 33 Regions Visited 3 Branch Regions 1 Pre-discovered Areas . | . . . . Known Exits Taken 2 | . 1 1 . Unknown Exits Taken 1 | 1 . . . Scrap Searched . | . . . . Spaces Dug . | . . . . Terrain Destroyed 182 | . 3 149 30 Melee . | . . . . Projectile 2 | . . 2 . AOE 180 | . 3 147 30 Terrain Rammed . | . . . . Walls Destroyed . | . . . . Machines Disabled . | . . . . Actions | -11 -10 -9 -9 --------- Run | Yrd Mat Mat Sto Total 2147 | 79 677 1015 376 Wait 67 | . . . 67 Move 1703 | 52 580 800 271 Hop . | . . . . Pick Up 74 | 11 24 35 4 Fast Attach 7 | 2 4 1 . Attach 32 | 5 9 18 . Detach 3 | . . 3 . Swap 42 | 2 5 31 4 Drop 37 | 3 15 16 3 Fire 169 | 4 38 105 22 Melee 1 | . . 1 . Ram . | . . . . Kick 10 | . . 5 5 Crush 2 | . 2 . . Escape Stasis . | . . . . Rewire . | . . . . Trap . | . . . . Miscellaneous . | . . . . Route ------- -11/Scrapyard -10/Materials (discovered 3 exits: *Mat x2 / *Min) -9/Materials (discovered 2 exits: [*Mat] / *Sto) -9/Storage History --------- Turn | Location | Event 3 | -11/Scrapyard | Discovered new exit (range 15) 84 | -11/Scrapyard | Entered Materials 162 | -10/Materials | Discovered new exit (range 12) 185 | -10/Materials | Identified exit to Mines 337 | -10/Materials | Build established: Mutant 492 | -10/Materials | Discovered new exit (range 15) 515 | -10/Materials | Identified exit to Materials 1047 | -10/Materials | Discovered exit to Materials (range 14) 1109 | -10/Materials | Entered another Materials area 1109 | -9/Materials | Evolved 2 slots: Propulsion x1, Utility x1 1372 | -9/Materials | Lost 3 parts (3w) 1748 | -9/Materials | Build established: Scavenger-Mutant 1821 | -9/Materials | Discovered new exit (range 6) 1835 | -9/Materials | Discovered new exit (range 15) 2124 | -9/Materials | Core integrity fell below 50% 2309 | -9/Materials | First assault squad dispatched 2371 | -9/Materials | Lost 4 parts (2n1u1w) 2387 | -9/Materials | Core integrity fell below 20% 2415 | -9/Materials | Lost 3 parts (1p1n1w) 2724 | -9/Materials | Identified exit to Storage 2726 | -9/Materials | Entered Storage 3190 | -9/Storage | Met a pair of Derelict thieves 3256 | -9/Storage | Destroyed by G-47 Trooper with Particle Gun Last Messages --------------- 03240_ G-47 Trooper unfolds itself. 03240_ B-36 Bruiser unfolds itself. 03240_ L-31 Rogue unfolds itself. 03240_ I-25 Savior unfolds itself. 03242_ System corrupted: Heat flow error (+249). 03242_ K-01 Serf collects debris. 03244_ DM-2AD(g) destroyed. 03245_ B-36 Bruiser destroyed. 03245_ 9D-LRF(g) destroyed. [Achievement: Backstab] 03247_ K-01 Serf collects debris. 03247_ K-01 Serf destroyed. 03247_ K-01 Serf collects debris. 03251_ L-31 Rogue destroyed. 03251_ Transport Mainframe disabled. 03252_ R-06 Scavenger collects Wheel. 03254_ The unstable cave ceiling collapses. 03255_ G-34 Mercenary destroyed. 03255_ U-05 Engineer lays Concrete. 03256_ Critical hit (Burn: +37). Map ----- +----------------------------------------------------+ | # #????????????????????????????????????????? | | # #????????????????????????????????????????? | | # #????????????????????????????????????????? | | # #????????????????????????????????????????? | | # #????????????????????????????????????????? | | # #????????????????????????????????????????? | | # #????????????????????????????????????????? | | # = #????????????????????????????????????????? | | # %!#????????????????????????????????????????? | | # =#????????????????????????????????????????? | | # #?????????#+##+###???????????????????????? | | # #?######??# ????????????????????????? | | # #?#! ! #### #???????????????????????????? | | # #?# !! #T## #???????????????????????????? | | # #?# " %+ #############???????????????? | | # #?#! # + #???????????????? | | # #?# ! " # ### #???????????????? | | # #?#!! !# # #?#k""" """ #???????????????? | | #% #?######### #?# """ """ #???????????????? | | + =#??######## ### """ """ #???????????????? | | # #### # + #???????????????? | | #^^ % / # # # #???????????????? | | #^^ #### u #???????????????? | | # #??# ##T#"????????????? | | ##+##### [!%r % [ "????????????? | | # =g % % @ "????????????? | | [ %= # *= #+####"????????????? | | == # #???????????????? | | "" # #???????????????? | | "" # "" ## " """ #??????????????? | | "" # "Y #### " "" """" ##??????????????? | | # "" #??# """" """" ????????????????? | | ""T""" # #??# """" """" ????????????????? | | ########## ####??# ??#???????????????? | | ??????????#???????#########??????????????????? | | | | | | | | | | | | | | | | | | | | | | | | | | | | | | | +----------------------------------------------------+ Best States ------------- Heat Dissipation 28 Energy Generation 13 Energy Capacity 265 Matter Stores 300 Matter Capacity 300 Sight Range 16 Terrain Scan Density 10 Power Amplification 20 Additional Mass Support 6 Armor Coverage 150 Core Shielding 20 Evasion (%) 55 Targeting Accuracy 5 Recoil Reduction 3 Item Schematics ----------------- None Robot Schematics ------------------ None Fabricated ------------ Nothing Alien Tech Used ----------------- None Achievements -------------- Backstab Safety First Challenges ------------ None Game ------ Seed HypervelocityDeuteriumSlayer Manual? 0 Play Time 00:38:04 Cumulative 4.6 hours Start 2024.03.31 @ 17:27:04 End 2024.03.31 @ 18:02:42 Sessions 1 Manual Loads 0 Difficulty Rogue Special Mode None Game No. 11 Rogue 11 Adventurer 0 Explorer 0 Win Type - Total 0 Types 0/0/0/0/0/0/0/0/0 Lore% 1 Gallery% 10 Achievement% 10 Wizard Run 0 Options --------- Layout 0 ASCII 0 Keyboard 0 Movement Mouse Keybinds 0 Fullscreen 1 Font 24/Smallcaps Map View 76x50 Zoom Use 0% Tactical HUD 1 Map Filters NONE Filters NONE Steam 1 RUN: a7dbfadb-0bbc-41b4-87d6-e46de99d565e